lending/lending_fUSD_20240621
["ID","MTS","AMOUNT","RATE_DAILY","PERIOD"]
[330055628,1718973091937,-1619.58,0.00022465,4]
[330055629,1718973091946,-2420.59,0.00022465,4]
[330055630,1718973091955,-500.0,0.00022465,4]
[330055631,1718973091965,-239.15027043,0.00022465,4]
[330055632,1718973091975,-2089.84,0.00022465,4]
[330055633,1718973091984,-4010.87,0.00022465,4]
[330055634,1718973091994,-916.04,0.00022465,4]
[330055635,1718973092004,-2913.75,0.00022465,4]
[330055636,1718973092013,-1112.73,0.00022465,4]
[330055637,1718973092023,-355.9,0.00022465,4]
[330055638,1718973092032,-478.0,0.00022465,4]
[330055639,1718973092043,-544.15724419,0.00022465,4]
[330055640,1718973092052,-500.0,0.00022465,4]
[330055641,1718973092062,-625.29,0.00022465,4]
[330055642,1718973092072,-601.45306748,0.00022465,4]
[330055643,1718973092083,-500.0,0.00022465,4]
[330055644,1718973092092,-500.0,0.00022465,4]
[330055645,1718973092102,-500.0,0.00022465,4]
[330055646,1718973092112,-1793.24,0.00022465,4]
[330055647,1718973092122,-16994.39,0.00022465,4]
[330055648,1718973092131,-1945.66,0.00022465,4]
[330055649,1718973092141,-8296.21,0.00022465,4]
[330055650,1718973092151,-500.0,0.00022465,4]
[330055651,1718973092163,-1811.43,0.00022465,4]
[330055652,1718973092172,-806.03,0.00022465,4]
[330055653,1718973092181,-500.0,0.00022465,4]
[330055654,1718973092190,-500.0,0.00022465,4]
[330055655,1718973092199,-500.0,0.00022465,4]
[330055656,1718973092208,-500.0,0.00022465,4]
[330055657,1718973092218,-3031.85,0.00022465,4]
[330055658,1718973092227,-1346.46,0.00022465,4]
[330055659,1718973092237,-500.0,0.00022465,4]
[330055660,1718973092247,-1356.56,0.00022465,4]
[330055661,1718973092257,-8619.34,0.00022465,4]
[330055662,1718973092267,-982.4,0.00022465,4]
[330055663,1718973092277,-7923.23,0.00022465,4]
[330055664,1718973092287,-500.0,0.00022465,4]
[330055665,1718973092297,-500.0,0.00022465,4]
[330055666,1718973092306,-1282.01,0.00022465,4]
[330055667,1718973092317,-500.0,0.00022465,4]
[330055668,1718973092326,-500.0,0.00022465,4]
[330055669,1718973092336,-2194.68,0.00022465,4]
[330055670,1718973092346,-1065.22,0.00022465,4]
[330055671,1718973092356,-500.0,0.00022465,4]
[330055672,1718973092368,-500.0,0.00022465,4]
[330055673,1718973092381,-2605.01,0.00022465,4]
[330055674,1718973092391,-1086.11,0.00022465,4]
[330055675,1718973092403,-1194.85,0.00022465,4]
[330055676,1718973092415,-637.84,0.00022465,4]
[330055677,1718973092425,-500.0,0.00022465,4]
[330055678,1718973092434,-607.49,0.00022465,4]
[330055679,1718973092443,-2158.75,0.00022465,4]
[330055680,1718973092456,-500.0,0.00022465,4]
[330055681,1718973092466,-4663.66,0.00022465,4]
[330055682,1718973092476,-500.0,0.00022465,4]
[330055683,1718973092486,-6655.78,0.00022465,4]
[330055684,1718973092751,-500.0,0.00022465,4]
[330055685,1718973092761,-500.0,0.00022465,4]
[330055686,1718973092770,-3341.03,0.00022465,4]
[330055687,1718973092780,-500.0,0.00022465,4]
[330055688,1718973092789,-565.88,0.00022465,4]
[330055689,1718973092799,-2666.03,0.00022465,4]
[330055690,1718973092808,-500.0,0.00022465,4]
[330055691,1718973092818,-500.0,0.00022465,4]
[330055692,1718973092827,-740.45,0.00022465,4]
[330055693,1718973092836,-1632.6,0.00022465,4]
[330055694,1718973092846,-500.0,0.00022465,4]
[330055695,1718973092855,-508.97658551,0.00022465,4]
[330055696,1718973092864,-824.01,0.00022465,4]
[330055697,1718973092873,-500.0,0.00022465,4]
[330055698,1718973092882,-3484.81,0.00022465,4]
[330055699,1718973092892,-5214.93,0.00022465,4]
[330055700,1718973092901,-2247.85,0.00022465,4]
[330055701,1718973092913,-3738.85,0.00022465,4]
[330055702,1718973092923,-1781.61,0.00022465,4]
[330055703,1718973092932,-562.49,0.00022465,4]
[330055704,1718973092941,-1040.27,0.00022465,4]
[330055705,1718973092949,-500.0,0.00022465,4]
[330055706,1718973092958,-500.0,0.00022465,4]
[330055707,1718973092967,-681.24,0.00022465,4]
[330055708,1718973092977,-500.0,0.00022465,4]
[330055709,1718973092986,-1331.42,0.00022465,4]
[330055710,1718973092996,-4930.88,0.00022465,4]
[330055711,1718973093005,-500.0,0.00022465,4]
[330055712,1718973093014,-1991.63,0.00022465,4]
[330055713,1718973093024,-2060.73,0.00022465,4]
[330055714,1718973093033,-22511.49,0.00022465,4]
[330055715,1718973093043,-1027.8,0.00022465,4]
[330055716,1718973093052,-682.79,0.00022465,4]
[330055717,1718973093062,-500.0,0.00022465,4]
[330055718,1718973093071,-500.0,0.00022465,4]
[330055719,1718973093081,-500.0,0.00022465,4]
[330055720,1718973093090,-523.91,0.00022465,4]
[330055721,1718973093100,-500.0,0.00022465,4]
[330055722,1718973093109,-500.0,0.00022465,4]
[330055723,1718973093118,-963.12,0.00022465,4]
[330055724,1718973093128,-500.0,0.00022465,4]
[330055725,1718973093138,-340.42,0.00022465,4]
[330055726,1718973093147,-573.72,0.00022465,4]
[330055727,1718973093160,-500.0,0.00022465,4]
[330055728,1718973093170,-3318.44,0.00022465,4]
[330055729,1718973093180,-1235.03,0.00022465,4]
[330055730,1718973093190,-1728.01,0.00022465,4]
[330055731,1718973093199,-5655.85,0.00022465,4]
[330055732,1718973093209,-500.0,0.00022465,4]
[330055733,1718973093219,-500.0,0.00022465,4]
[330055734,1718973093229,-500.0,0.00022465,4]
[330055735,1718973093239,-500.0,0.00022465,4]
[330055736,1718973093249,-1315.22,0.00022465,4]
[330055737,1718973093259,-3110.37,0.00022465,4]
[330055738,1718973093268,-9208.26,0.00022465,4]
[330055739,1718973093278,-940.25,0.00022465,4]
[330055740,1718973093287,-987.55,0.00022465,4]
[330055741,1718973093297,-19451.71,0.00022465,4]
[330055742,1718973093307,-2261.31,0.00022465,4]
[330055743,1718973093316,-7126.8,0.00022465,4]
[330055744,1718973093326,-500.0,0.00022465,4]
[330055745,1718973093336,-500.0,0.00022465,4]
[330055746,1718973093346,-500.0,0.00022465,4]
[330055747,1718973093355,-2055.98,0.00022465,4]
[330055748,1718973093370,-500.0,0.00022465,4]
[330055749,1718973093380,-611.07,0.00022465,4]
[330055750,1718973093390,-500.0,0.00022465,4]
[330055751,1718973093400,-500.0,0.00022465,4]
[330055752,1718973093414,-763.62,0.00022465,4]
[330055753,1718973093423,-4795.5,0.00022465,4]
[330055754,1718973093432,-2328.69,0.00022465,4]
[330055755,1718973093440,-34751.57,0.00022465,4]
[330055756,1718973093455,-3330.89,0.00022465,4]
[330055757,1718973093464,-500.0,0.00022465,4]
[330055758,1718973093473,-500.0,0.00022465,4]
[330055759,1718973093483,-2342.9,0.00022465,4]
[330055760,1718973093492,-577.97,0.00022465,4]
[330055761,1718973093502,-500.0,0.00022465,4]
[330055762,1718973093511,-657.46,0.00022465,4]
[330055763,1718973093522,-500.0,0.00022465,4]
[330055764,1718973093533,-1405.08,0.00022465,4]
[330055765,1718973093543,-2526.55,0.00022465,4]
[330055766,1718973093554,-1000.44,0.00022465,4]
[330055767,1718973093563,-849.46,0.00022465,4]
[330055768,1718973093573,-1109.18,0.00022465,4]
[330055769,1718973093583,-9583.17,0.00022465,4]
[330055770,1718973093593,-500.0,0.00022465,4]
[330055771,1718973093604,-895.87,0.00022465,4]
[330055772,1718973093615,-2254.65,0.00022465,4]
[330055773,1718973093625,-824.6,0.00022465,4]
[330055774,1718973093636,-500.0,0.00022465,4]
[330055775,1718973093645,-760.9,0.00022465,4]
[330055776,1718973093659,-633.03,0.00022465,4]
[330055777,1718973093668,-500.0,0.00022465,4]
[330055778,1718973093678,-1615.67,0.00022465,4]
[330055779,1718973093687,-1368.32,0.00022465,4]
[330055780,1718973093696,-500.0,0.00022465,4]
[330055781,1718973093705,-2998.26,0.00022465,4]
[330055782,1718973093714,-500.0,0.00022465,4]
[330055783,1718973093722,-736.81,0.00022465,4]
[330055784,1718973093731,-1193.6,0.00022465,4]
[330055785,1718973093740,-500.0,0.00022465,4]
[330055786,1718973093749,-500.0,0.00022465,4]
[330055787,1718973093758,-500.0,0.00022465,4]
[330055788,1718973093767,-13625.03,0.00022465,4]
[330055789,1718973093776,-500.0,0.00022465,4]
[330055790,1718973093785,-763.98,0.00022465,4]
[330055791,1718973093794,-1391.92,0.00022465,4]
[330055792,1718973093804,-500.0,0.00022465,4]
[330055793,1718973093813,-1399.65,0.00022465,4]
[330055794,1718973093822,-859.81,0.00022465,4]
[330055795,1718973093831,-828.58,0.00022465,4]
[330055796,1718973093841,-2032.93,0.00022465,4]
[330055797,1718973093850,-4140.12,0.00022465,4]
[330055798,1718973093860,-9242.19,0.00022465,4]
[330055799,1718973093869,-500.0,0.00022465,4]
[330055800,1718973093878,-994.01,0.00022465,4]
[330055801,1718973093887,-500.0,0.00022465,4]
[330055802,1718973093898,-4610.23,0.00022465,4]
[330055803,1718973093915,-6035.12,0.00022465,4]
[330055804,1718973093925,-537.14,0.00022465,4]
[330055805,1718973093934,-532.05,0.00022465,4]
[330055806,1718973093943,-500.0,0.00022465,4]
[330055807,1718973093953,-976.14,0.00022465,4]
[330055808,1718973093962,-773.03,0.00022465,4]
[330055809,1718973093971,-500.0,0.00022465,4]
[330055810,1718973093980,-1375.23,0.00022465,4]
[330055811,1718973093989,-1722.7,0.00022465,4]
[330055812,1718973093997,-500.0,0.00022465,4]
[330055813,1718973094006,-3024.03,0.00022465,4]
[330055814,1718973094015,-2802.47,0.00022465,4]
[330055815,1718973094024,-679.98,0.00022465,4]
[330055816,1718973094033,-1634.91,0.00022465,4]
[330055817,1718973094042,-42558.14,0.00022465,4]
[330055818,1718973094051,-10375.1,0.00022465,4]
[330055819,1718973094061,-530.77652672,0.00022465,4]
[330055820,1718973094069,-500.0,0.00022465,4]
[330055821,1718973094078,-1127.67,0.00022465,4]
[330055822,1718973094087,-500.0,0.00022465,4]
[330055823,1718973094095,-659.26,0.00022465,4]
[330055824,1718973094104,-899.89,0.00022465,4]
[330055825,1718973094126,-843.22,0.00022465,4]
[330055826,1718973094146,-500.0,0.00022465,4]
[330055827,1718973094169,-4729.79,0.00022465,4]
[330055828,1718973094189,-500.0,0.00022465,4]
[330055829,1718973094210,-544.44048677,0.00022465,4]
[330055830,1718973094227,-500.0,0.00022465,4]
[330055831,1718973094246,-500.0,0.00022465,4]
[330055832,1718973094263,-3503.55,0.00022465,4]
[330055833,1718973094283,-2269.84,0.00022465,4]
[330055834,1718973094302,-1118.16,0.00022465,4]
[330055835,1718973094322,-5767.85,0.00022465,4]
[330055836,1718973094335,-563.12337285,0.00022465,4]
[330055837,1718973094354,-944.72,0.00022465,4]
[330055838,1718973094373,-1016.9,0.00022465,4]
[330055839,1718973094388,-1553.7,0.00022465,4]
[330055840,1718973094405,-1287.76,0.00022465,4]
[330055841,1718973094419,-500.0,0.00022465,4]
[330055842,1718973094435,-4029.23,0.00022465,4]
[330055843,1718973094452,-948.91,0.00022465,4]
[330055844,1718973094468,-8061.68,0.00022465,4]
[330055845,1718973094485,-645.64,0.00022465,4]
[330055846,1718973094500,-500.0,0.00022465,4]
[330055847,1718973094517,-753.5,0.00022465,4]
[330055848,1718973094531,-500.0,0.00022465,4]
[330055849,1718973094547,-1082.29,0.00022465,4]
[330055850,1718973094562,-821.86,0.00022465,4]
[330055851,1718973094578,-2618.75,0.00022465,4]
[330055852,1718973094593,-500.0,0.00022465,4]
[330055853,1718973094608,-2240.68,0.00022465,4]
[330055854,1718973094624,-6524.2,0.00022465,4]
[330055855,1718973094639,-500.0,0.00022465,4]
[330055856,1718973094655,-10229.78,0.00022465,4]
[330055857,1718973094676,-2672.77,0.00022465,4]
[330055858,1718973094692,-500.0,0.00022465,4]
[330055859,1718973094707,-1251.39,0.00022465,4]
[330055860,1718973094722,-548.32,0.00022465,4]
[330055861,1718973094737,-2198.52,0.00022465,4]
[330055862,1718973094752,-501.72,0.00022465,4]
[330055863,1718973094767,-3743.45,0.00022465,4]
[330055864,1718973094783,-2365.98,0.00022465,4]
[330055865,1718973094799,-517.75,0.00022465,4]
[330055866,1718973094815,-2448.82,0.00022465,4]
[330055867,1718973094832,-6165.62,0.00022465,4]
[330055868,1718973094847,-14455.54,0.00022465,4]
[330055869,1718973094864,-500.0,0.00022465,4]
[330055870,1718973094878,-3477.14,0.00022465,4]
[330055871,1718973094894,-500.0,0.00022465,4]
[330055872,1718973094909,-4788.49,0.00022465,4]
[330055873,1718973094924,-20294.02,0.00022465,4]
[330055874,1718973094939,-500.0,0.00022465,4]
[330055875,1718973094954,-500.0,0.00022465,4]
[330055876,1718973094969,-1172.3,0.00022465,4]
[330055877,1718973094984,-2444.9,0.00022465,4]
[330055878,1718973094999,-642.11,0.00022465,4]
[330055879,1718973095014,-500.0,0.00022465,4]
[330055880,1718973095029,-500.0,0.00022465,4]
[330055881,1718973095045,-500.0,0.00022465,4]
[330055882,1718973095061,-4260.44,0.00022465,4]
[330055883,1718973095076,-1028.41,0.00022465,4]
[330055884,1718973095092,-607.61,0.00022465,4]
[330055885,1718973095107,-504.65,0.00022465,4]
[330055886,1718973095123,-1589.93,0.00022465,4]
[330055887,1718973095138,-500.0,0.00022465,4]
[330055888,1718973095153,-500.0,0.00022465,4]
[330055889,1718973095176,-568.18,0.00022465,4]
[330055890,1718973095194,-500.0,0.00022465,4]
[330055891,1718973095209,-661.01,0.00022465,4]
[330055892,1718973095224,-776.26,0.00022465,4]
[330055893,1718973095239,-500.0,0.00022465,4]
[330055894,1718973095263,-500.0,0.00022465,4]
[330055895,1718973095279,-500.0,0.00022465,4]
[330055896,1718973095296,-535.0,0.00022465,4]
[330055897,1718973095312,-500.0,0.00022465,4]
[330055898,1718973095327,-500.0,0.00022465,4]
[330055899,1718973095342,-3142.51,0.00022465,4]
[330055900,1718973095357,-500.0,0.00022465,4]
[330055901,1718973095374,-500.0,0.00022465,4]
[330055902,1718973095389,-7651.37,0.00022465,4]
[330055903,1718973095403,-1483.94,0.00022465,4]
[330055904,1718973095421,-500.0,0.00022465,2]
[330055905,1718973095435,-1022.68,0.00022465,4]
[330055906,1718973095453,-938.92,0.00022465,4]
[330055907,1718973095469,-500.0,0.00022465,4]
[330055908,1718973095484,-659.06,0.00022465,4]
[330055909,1718973095501,-3324.75,0.00022465,4]
[330055910,1718973095516,-500.0,0.00022465,4]
[330055911,1718973095532,-3440.18,0.00022465,4]
[330055912,1718973095548,-509.77,0.00022465,4]
[330055913,1718973095565,-2237.29,0.00022465,4]
[330055914,1718973095581,-681.53,0.00022465,4]
[330055915,1718973095596,-500.0,0.00022465,2]
[330055916,1718973095611,-500.0,0.00022465,4]
[330055917,1718973095628,-921.28,0.00022465,4]
[330055918,1718973095644,-646.81,0.00022465,4]
[330055919,1718973095664,-1282.2,0.00022465,4]
[330055920,1718973095678,-500.0,0.00022465,4]
[330055921,1718973095692,-500.0,0.00022465,4]
[330055922,1718973095706,-3118.0,0.00022465,4]
[330055923,1718973095721,-500.0,0.00022465,4]
[330055924,1718973095736,-674.05,0.00022465,4]
[330055925,1718973095751,-508.55200295,0.00022465,4]
[330055926,1718973095768,-500.0,0.00022465,4]
[330055927,1718973095784,-500.0,0.00022465,4]
[330055928,1718973095800,-595.09,0.00022465,4]
[330055929,1718973095815,-7977.64,0.00022465,4]
[330055930,1718973095831,-500.0,0.00022465,4]
[330055931,1718973095847,-1623.14,0.00022465,4]
[330055932,1718973095863,-2258.89,0.00022465,4]
[330055933,1718973095878,-500.0,0.00022465,4]
[330055934,1718973095894,-559.15816971,0.00022465,4]
[330055935,1718973095914,-1390.34,0.00022465,4]
[330055936,1718973095930,-626.67,0.00022465,4]
[330055937,1718973095945,-21625.56,0.00022465,4]
[330055938,1718973095961,-7898.86,0.00022465,4]
[330055939,1718973095977,-1603.19,0.00022465,4]
[330055940,1718973095992,-500.0,0.00022465,4]
[330055941,1718973096008,-1546.07,0.00022465,4]
[330055942,1718973096023,-660.64,0.00022465,4]
[330055943,1718973096039,-621.77758811,0.00022465,4]
[330055944,1718973096055,-2103.36,0.00022465,4]
[330055945,1718973096070,-2503.5,0.00022465,4]
[330055946,1718973096084,-1502.56,0.00022465,4]
[330055947,1718973096100,-957.42,0.00022465,4]
[330055948,1718973096115,-500.0,0.00022465,4]
[330055949,1718973096130,-2903.05,0.00022465,4]
[330055950,1718973096144,-932.91,0.00022465,4]
[330055951,1718973096161,-989.38,0.00022465,4]
[330055952,1718973096175,-2316.39,0.00022465,4]
[330055953,1718973096189,-500.0,0.00022465,4]
[330055954,1718973096205,-1170.36,0.00022465,4]
[330055955,1718973096220,-5800.0,0.00022488,2]
[330055956,1718973096234,-5800.0,0.00022496,2]
[330055957,1718973096249,-443.32163492,0.000225,2]
[330055958,1718973096265,-5800.0,0.00022505,2]
[330055959,1718973096279,-1118.3,0.00022513,4]
[330055960,1718973096294,-5800.0,0.00022513,2]
[330055961,1718973096309,-1339.1051969,0.00022514,2]
[330055962,1718973096324,-150.74997782,0.00022529,2]
[330055963,1718973096339,-151.0,0.00022539,4]
[330055964,1718973096604,-150.91328411,0.00022551,2]
[330055965,1718973096659,-2262.99017345,0.00022581,2]
[330055966,1718973096668,-443.32163492,0.00022597,2]
[330055967,1718973096677,-150.74997782,0.00022613,2]
[330055968,1718973096690,-513.72,0.00022621,2]
[330055969,1718973096700,-153.95990554,0.00022622,2]
[330055970,1718973096708,-216003.07,0.00022652,6]
[330055971,1718973096717,-36448.31,0.00022652,6]
[330055972,1718973096726,-12005.73,0.00022652,6]
[330055973,1718973096735,-42320.83,0.00022652,6]
[330055974,1718973096744,-8711.86,0.00022652,6]
[330055975,1718973096753,-36189.73,0.00022652,6]
[330055976,1718973096763,-12885.04,0.00022652,6]
[330055977,1718973096771,-11194.18,0.00022652,6]
[330055978,1718973096780,-8716.1,0.00022652,6]
[330055979,1718973096789,-33403.17,0.00022652,6]
[330055980,1718973096798,-24473.19,0.00022652,6]
[330055981,1718973096807,-3467.64,0.00022652,6]
[330055982,1718973096816,-5640.5,0.00022652,6]
[330055983,1718973096826,-182.753223,0.00022694,2]
[330055984,1718973096835,-6435.861566,0.00022694,2]
[330055985,1718973096844,-230.91994,0.00022694,2]
[330055986,1718973096853,-350.795551,0.00022694,2]
[330055987,1718973096863,-9737.820672,0.00022694,2]
[330055988,1718973096872,-2692.380544,0.00022694,2]
[330055989,1718973096882,-11797.285406,0.00022694,2]
[330055990,1718973096892,-215.144644,0.00022694,2]
[330055991,1718973096901,-443.32163492,0.00022695,2]
[330055992,1718973096916,-652.0,0.00022708,30]
[330055993,1718973096925,-359.0,0.00022708,30]
[330055994,1718973096935,-652.0,0.00022718,30]
[330055995,1718973096944,-359.0,0.00022718,30]
[330055996,1718973096954,-249.67,0.00022726,2]
[330055997,1718973096963,-155.78,0.00022728,30]
[330055998,1718973096972,-652.0,0.00022728,30]
[330055999,1718973096982,-359.0,0.00022728,30]
[330056000,1718973096991,-2262.99017345,0.00022735,2]
[330056001,1718973097001,-1118.3,0.00022738,4]
[330056002,1718973097011,-1118.3,0.00022738,4]
[330056003,1718973097020,-1118.3,0.00022738,4]
[330056004,1718973097030,-1118.3,0.00022738,4]
[330056005,1718973097040,-1118.3,0.00022738,4]
[330056006,1718973097049,-1118.3,0.00022738,4]
[330056007,1718973097058,-1118.3,0.00022738,4]
[330056008,1718973097068,-1118.40621188,0.00022738,4]
[330056009,1718973097077,-500.0,0.00022739,4]
[330056010,1718973097087,-500.0,0.00022739,4]
[330056011,1718973097096,-500.0,0.00022739,4]
[330056012,1718973097106,-500.0,0.00022739,4]
[330056013,1718973097116,-500.0,0.00022739,4]
[330056014,1718973097125,-500.0,0.00022739,4]
[330056015,1718973097134,-500.0,0.00022739,4]
[330056016,1718973097144,-500.0,0.00022739,4]
[330056017,1718973097154,-500.0,0.00022739,4]
[330056018,1718973097163,-500.0,0.00022739,4]
[330056019,1718973097173,-500.0,0.00022739,4]
[330056020,1718973097182,-627.32810777,0.00022739,4]
[330056021,1718973097191,-559.50243922,0.00022739,4]
[330056022,1718973097201,-500.0,0.00022739,4]
[330056023,1718973097210,-500.0,0.00022739,4]
[330056024,1718973097220,-500.0,0.00022739,4]
[330056025,1718973097229,-473.39333713,0.00022739,4]
[330056026,1718973097239,-512.93624659,0.00022739,4]
[330056027,1718973097248,-585.82373678,0.00022739,4]
[330056028,1718973097258,-500.0,0.00022739,4]
[330056029,1718973097267,-296.15842849,0.00022739,4]
[330056030,1718973097276,-500.0,0.00022739,4]
[330056031,1718973097286,-500.0,0.00022739,4]
[330056032,1718973097295,-697.45,0.00022739,4]
[330056033,1718973097304,-500.0,0.00022739,4]
[330056034,1718973097313,-500.0,0.00022739,4]
[330056035,1718973097323,-500.0,0.00022739,4]
[330056036,1718973097332,-500.0,0.00022739,4]
[330056037,1718973097342,-500.0,0.00022739,4]
[330056038,1718973097351,-500.0,0.00022739,4]
[330056039,1718973097361,-723.07,0.00022739,4]
[330056040,1718973097371,-500.0,0.00022739,4]
[330056041,1718973097382,-500.0,0.00022739,4]
[330056042,1718973097392,-500.0,0.00022739,4]
[330056043,1718973097401,-500.0,0.00022739,4]
[330056044,1718973097413,-500.0,0.00022739,4]
[330056045,1718973097423,-500.0,0.00022739,4]
[330056046,1718973097432,-500.0,0.00022739,4]
[330056047,1718973097441,-297.62403654,0.00022739,4]
[330056048,1718973097451,-731.77,0.00022739,4]
[330056049,1718973097463,-500.0,0.00022739,4]
[330056050,1718973097472,-500.0,0.00022739,4]
[330056051,1718973097481,-509.31643643,0.00022739,4]
[330056052,1718973097490,-500.0,0.00022739,4]
[330056053,1718973097499,-500.0,0.00022739,4]
[330056054,1718973097508,-500.0,0.00022739,4]
[330056055,1718973097517,-500.0,0.00022739,4]
[330056056,1718973097527,-500.0,0.00022739,4]
[330056057,1718973097536,-500.0,0.00022739,4]
[330056058,1718973097545,-489.68015634,0.00022739,4]
[330056059,1718973097555,-778.04,0.00022739,4]
[330056060,1718973097564,-500.0,0.00022739,4]
[330056061,1718973097575,-500.0,0.00022739,4]
[330056062,1718973097585,-738.02,0.00022739,4]
[330056063,1718973097596,-1328.76,0.00022739,4]
[330056064,1718973097606,-772.25,0.00022739,4]
[330056065,1718973097616,-1361.86,0.00022739,4]
[330056066,1718973097625,-500.0,0.00022739,4]
[330056067,1718973097635,-500.0,0.00022739,4]
[330056068,1718973097645,-500.0,0.00022739,4]
[330056069,1718973097657,-1044.55,0.00022739,4]
[330056070,1718973097666,-500.0,0.00022739,4]
[330056071,1718973097676,-613.18,0.00022739,4]
[330056072,1718973097686,-575.09,0.00022739,4]
[330056073,1718973097695,-500.0,0.00022739,4]
[330056074,1718973097705,-496.12,0.00022739,4]
[330056075,1718973097715,-500.0,0.00022739,4]
[330056076,1718973097725,-500.0,0.00022739,4]
[330056077,1718973097734,-500.0,0.00022739,4]
[330056078,1718973097743,-625.83,0.00022739,4]
[330056079,1718973097752,-500.0,0.00022739,4]
[330056080,1718973097762,-500.0,0.00022739,4]
[330056081,1718973097771,-500.0,0.00022739,4]
[330056082,1718973097780,-500.0,0.00022739,4]
[330056083,1718973097790,-500.0,0.00022739,4]
[330056084,1718973097799,-500.0,0.00022739,4]
[330056085,1718973097808,-766.56,0.00022739,4]
[330056086,1718973097818,-500.0,0.00022739,4]
[330056087,1718973097828,-765.75,0.00022739,4]
[330056088,1718973097837,-733.99,0.00022739,4]
[330056089,1718973097847,-1432.67,0.00022739,4]
[330056090,1718973097856,-500.0,0.00022739,4]
[330056091,1718973097866,-500.0,0.00022739,4]
[330056092,1718973097875,-500.0,0.00022739,4]
[330056093,1718973097884,-1425.83,0.00022739,4]
[330056094,1718973097894,-640.93,0.00022739,4]
[330056095,1718973097903,-500.0,0.00022739,4]
[330056096,1718973097916,-894.28,0.00022739,4]
[330056097,1718973097925,-500.0,0.00022739,4]
[330056098,1718973097934,-500.0,0.00022739,4]
[330056099,1718973097943,-500.0,0.00022739,4]
[330056100,1718973097952,-500.0,0.00022739,4]
[330056101,1718973097961,-500.0,0.00022739,4]
[330056102,1718973097970,-191.31515549,0.00022739,4]
[330056103,1718973097980,-500.0,0.00022739,4]
[330056104,1718973097989,-500.0,0.00022739,4]
[330056105,1718973097999,-500.0,0.00022739,4]
[330056106,1718973098008,-500.0,0.00022739,4]
[330056107,1718973098018,-500.0,0.00022739,4]
[330056108,1718973098027,-582.72,0.00022739,4]
[330056109,1718973098036,-500.0,0.00022739,4]
[330056110,1718973098045,-500.0,0.00022739,4]
[330056111,1718973098055,-500.0,0.00022739,4]
[330056112,1718973098064,-1219.44,0.00022739,4]
[330056113,1718973098074,-519.15,0.00022739,4]
[330056114,1718973098083,-191.79514083,0.00022739,4]
[330056115,1718973098092,-947.78,0.00022739,4]
[330056116,1718973098101,-1045.04,0.00022739,4]
[330056117,1718973098110,-500.0,0.00022739,4]
[330056118,1718973098120,-501.69248159,0.00022739,4]
[330056119,1718973098129,-869.89,0.00022739,4]
[330056120,1718973098139,-500.0,0.00022739,4]
[330056121,1718973098148,-718.82,0.00022739,4]
[330056122,1718973098159,-539.21204253,0.00022739,4]
[330056123,1718973098168,-578.91,0.00022739,4]
[330056124,1718973098177,-555.92,0.00022739,4]
[330056125,1718973098187,-666.61,0.00022739,4]
[330056126,1718973098197,-506.58,0.00022739,4]
[330056127,1718973098206,-629.56,0.00022739,4]